bitfinex-derivatives/quotes_BTCF0:USTF0_20251228
["timestamp","ask_amount","ask_price","bid_price","bid_amount"]
[1766935945061,0.09668,87988.0,87970.0,0.0113754]
[1766935946169,0.0113732,87987.0,87969.0,0.00011362]
[1766935946663,0.0113736,87985.0,87969.0,0.00011362]
[1766935947272,0.1080531,87988.0,87969.0,0.00011362]
[1766935948171,0.0113734,87986.0,87969.0,0.00011362]
[1766935949165,0.0113737,87984.0,87969.0,0.00011362]
[1766935949362,0.011374,87982.0,87969.0,0.00011362]
[1766935949564,0.011374,87982.0,87965.0,0.1536]
[1766935950660,0.011374,87982.0,87965.0,0.15377044]
[1766935951870,0.09668,87988.0,87965.0,0.15377044]
[1766935952173,0.02604126,87987.0,87965.0,0.15377044]
[1766935952374,0.09668,87988.0,87965.0,0.15377044]
[1766935952566,0.02604132,87987.0,87967.0,0.0113758]
[1766935952766,0.09668,87988.0,87967.0,0.0113758]
[1766935952971,0.02604132,87987.0,87967.0,0.0113758]
[1766935953173,0.1080532,87988.0,87967.0,0.0113758]
[1766935953365,0.02604143,87987.0,87967.0,0.0113758]
[1766935953565,0.1080532,87988.0,87967.0,0.0113758]
[1766935955474,0.1080532,87988.0,87969.0,0.0113754]
[1766935955673,0.09668,87988.0,87969.0,0.0113754]
[1766935962393,0.02604598,87987.0,87969.0,0.0113754]
[1766935962593,0.09668,87988.0,87969.0,0.0113754]
[1766935962998,0.02604598,87987.0,87969.0,0.0113754]
[1766935963189,0.09668,87988.0,87969.0,0.0113754]
[1766935963389,0.02604632,87987.0,87969.0,0.0113754]
[1766935963588,0.09668,87988.0,87969.0,0.0113754]
[1766935963789,0.02604633,87987.0,87969.0,0.0113754]
[1766935963990,0.09668,87988.0,87969.0,0.0113754]
[1766935964194,0.02604634,87987.0,87969.0,0.0113754]
[1766935964499,0.09668,87988.0,87969.0,0.0113754]
[1766935965194,0.02604723,87987.0,87969.0,0.0113754]
[1766935965398,0.09668,87988.0,87969.0,0.0113754]
[1766935965599,0.0260472,87987.0,87969.0,0.0113754]
[1766935965803,0.09668,87988.0,87969.0,0.0113754]
[1766935965997,0.02604768,87987.0,87969.0,0.0113754]
[1766935966301,0.09668,87988.0,87971.0,0.0113752]
[1766935966601,0.02604903,87987.0,87971.0,0.0113752]
[1766935966899,0.09668,87988.0,87971.0,0.0113752]
[1766935967402,0.02604974,87987.0,87971.0,0.0113752]
[1766935967696,0.09668,87988.0,87973.0,0.0113749]
[1766935969499,0.00017044,87991.0,87973.0,0.0113749]
[1766935969704,0.17965034,87990.0,87973.0,0.0113749]
[1766935969902,0.02605034,87989.0,87973.0,0.0113749]
[1766935970103,0.02605034,87988.0,87973.0,0.0113749]
[1766935970297,0.1536,87990.0,87973.0,0.0113749]
[1766935970499,0.02605009,87989.0,87973.0,0.0113749]
[1766935970800,0.02605009,87988.0,87973.0,0.0113749]
[1766935970998,0.1536,87990.0,87975.0,0.0113747]
[1766935971198,0.02604988,87989.0,87975.0,0.0113747]
[1766935971401,0.02604988,87988.0,87975.0,0.0113747]
[1766935971606,0.1536,87990.0,87975.0,0.0113747]
[1766935971803,0.02604885,87989.0,87975.0,0.0113747]
[1766935972106,0.02604885,87988.0,87975.0,0.0113747]
[1766935972298,0.1536,87990.0,87975.0,0.0113747]
[1766935972497,0.02609842,87989.0,87975.0,0.0113747]
[1766935972706,0.02609842,87988.0,87975.0,0.0113747]
[1766935972908,0.1536,87990.0,87975.0,0.0113747]
[1766935973108,0.02609843,87989.0,87975.0,0.0113747]
[1766935973305,0.02609843,87988.0,87975.0,0.0113747]
[1766935973506,0.1536,87990.0,87975.0,0.0113747]
[1766935973708,0.02609801,87989.0,87975.0,0.0113747]
[1766935973906,0.02609801,87988.0,87975.0,0.0113747]
[1766935974105,0.1536,87990.0,87975.0,0.0113747]
[1766935974406,0.02609812,87989.0,87975.0,0.0113747]
[1766935974605,0.1536,87990.0,87975.0,0.0113747]
[1766935974808,0.0260979,87989.0,87975.0,0.0113747]
[1766935975009,0.1536,87990.0,87975.0,0.0113747]
[1766935975208,0.02609788,87989.0,87975.0,0.0113747]
[1766935975412,0.1536,87990.0,87975.0,0.0113747]
[1766935975709,0.02609767,87989.0,87975.0,0.0113747]
[1766935975912,0.1536,87990.0,87975.0,0.0113747]
[1766935976111,0.02609767,87989.0,87975.0,0.0113747]
[1766935976301,0.1536,87990.0,87975.0,0.0113747]
[1766935976503,0.02609748,87989.0,87975.0,0.0113747]
[1766935976704,0.1536,87990.0,87975.0,0.0113747]
[1766935977012,0.0260975,87989.0,87975.0,0.0113747]
[1766935977214,0.1536,87990.0,87975.0,0.0113747]
[1766935977412,0.02609732,87989.0,87975.0,0.0113747]
[1766935977709,0.1536,87990.0,87975.0,0.0113747]
[1766935977915,0.02609733,87989.0,87975.0,0.0113747]
[1766935978105,0.1536,87990.0,87975.0,0.0113747]
[1766935978303,0.02609735,87989.0,87975.0,0.0113747]
[1766935978504,0.1536,87990.0,87975.0,0.0113747]
[1766935978703,0.02609719,87989.0,87975.0,0.0113747]
[1766935978904,0.1536,87990.0,87975.0,0.0113747]
[1766935979105,0.02609723,87989.0,87975.0,0.0113747]
[1766935979404,0.1536,87990.0,87975.0,0.0113747]
[1766935979711,0.02609712,87989.0,87975.0,0.0113747]
[1766935979912,0.1536,87990.0,87975.0,0.0113747]
[1766935980112,0.02609715,87989.0,87975.0,0.0113747]
[1766935980413,0.1536,87990.0,87972.0,0.0113751]
[1766935980714,0.0260974,87989.0,87972.0,0.0113751]
[1766935980914,0.1536,87990.0,87972.0,0.0113751]
[1766935981116,0.0260974,87989.0,87972.0,0.0113751]
[1766935981304,0.1536,87990.0,87972.0,0.0113751]
[1766935981504,0.02609766,87989.0,87972.0,0.0113751]
[1766935981710,0.0113733,87987.0,87967.0,0.1536]
[1766935981909,0.1649729,87990.0,87968.0,0.0113757]
[1766935982213,0.02609813,87989.0,87968.0,0.0113757]
[1766935982417,0.02609813,87988.0,87968.0,0.0113757]
[1766935982616,0.1649729,87990.0,87968.0,0.0113757]
[1766935982916,0.02609853,87989.0,87968.0,0.0113757]
[1766935983110,0.1649729,87990.0,87968.0,0.0113757]
[1766935983111,0.02609853,87988.0,87968.0,0.0113757]
[1766935983311,0.1649729,87990.0,87968.0,0.0113757]
[1766935983514,0.02609885,87989.0,87968.0,0.0113757]
[1766935983709,0.02609885,87988.0,87968.0,0.0113757]
[1766935983908,0.1649729,87990.0,87968.0,0.0113757]
[1766935984108,0.02609884,87989.0,87968.0,0.0113757]
[1766935984309,0.02609884,87988.0,87968.0,0.0113757]
[1766935984509,0.1649729,87990.0,87968.0,0.0113757]
[1766935984715,0.02609908,87989.0,87968.0,0.0113757]
[1766935984916,0.02609908,87988.0,87968.0,0.0113757]
[1766935985117,0.1649729,87990.0,87968.0,0.0113757]
[1766935985307,0.02609905,87989.0,87968.0,0.0113757]
[1766935985508,0.02609905,87988.0,87970.0,0.0113753]
[1766935985707,0.1649729,87990.0,87970.0,0.0113753]
[1766935985916,0.02609911,87989.0,87970.0,0.0113753]
[1766935986117,0.02609911,87988.0,87970.0,0.0113753]
[1766935986320,0.1649729,87990.0,87970.0,0.0113753]
[1766935986519,0.02609907,87989.0,87970.0,0.0113753]
[1766935986718,0.02609907,87988.0,87970.0,0.0113753]
[1766935986921,0.1649729,87990.0,87970.0,0.0113753]
[1766935987218,0.02609907,87989.0,87970.0,0.0113753]
[1766935987417,0.02609907,87988.0,87970.0,0.0113753]
[1766935987620,0.02609904,87987.0,87970.0,0.0113753]
[1766935987809,0.1649729,87990.0,87970.0,0.0113753]
[1766935988005,0.026099,87989.0,87970.0,0.0113753]
[1766935988214,0.026099,87988.0,87970.0,0.0113753]
[1766935988415,0.026099,87987.0,87970.0,0.0113753]
[1766935988614,0.1649729,87990.0,87972.0,0.0113751]
[1766935988914,0.02609891,87989.0,87972.0,0.0113751]
[1766935989116,0.02609891,87988.0,87972.0,0.0113751]
[1766935989313,0.02609891,87987.0,87972.0,0.0113751]
[1766935989515,0.1649729,87990.0,87972.0,0.0113751]
[1766935989720,0.02609888,87989.0,87972.0,0.0113751]
[1766935989914,0.02609888,87988.0,87972.0,0.0113751]
[1766935990114,0.02609888,87987.0,87972.0,0.0113751]
[1766935990313,0.1649729,87990.0,87972.0,0.0113751]
[1766935990514,0.02609888,87989.0,87972.0,0.0113751]
[1766935990717,0.02609888,87988.0,87972.0,0.0113751]
[1766935990922,0.02609888,87987.0,87972.0,0.0113751]
[1766935991123,0.1649729,87990.0,87972.0,0.0113751]
[1766935991422,0.02609881,87989.0,87969.0,0.0113755]
[1766935991622,0.02609881,87988.0,87969.0,0.0113755]
[1766935991923,0.02609881,87987.0,87969.0,0.0113755]
[1766935992114,0.1649729,87990.0,87969.0,0.0113755]
[1766935992314,0.02609888,87989.0,87969.0,0.0113755]
[1766935992526,0.02609888,87988.0,87969.0,0.0113755]
[1766935992727,0.02609888,87987.0,87969.0,0.0113755]
[1766935993024,0.1649729,87990.0,87969.0,0.0113755]
[1766935993223,0.02609896,87989.0,87969.0,0.0113755]
[1766935993417,0.02609896,87988.0,87969.0,0.0113755]
[1766935993617,0.02609896,87987.0,87969.0,0.0113755]
[1766935993818,0.1649729,87990.0,87969.0,0.0113755]
[1766935994016,0.02609903,87989.0,87969.0,0.0113755]
[1766935994215,0.02609903,87988.0,87969.0,0.0113755]
[1766935994411,0.02609903,87987.0,87969.0,0.0113755]
[1766935994617,0.1649729,87990.0,87969.0,0.0113755]
[1766935994817,0.02609908,87989.0,87969.0,0.0113755]
[1766935995018,0.02609908,87988.0,87969.0,0.0113755]
[1766935995219,0.02609908,87987.0,87969.0,0.0113755]
[1766935995420,0.1649729,87990.0,87969.0,0.0113755]
[1766935995629,0.02609913,87989.0,87969.0,0.0113755]
[1766935995924,0.02609913,87988.0,87969.0,0.0113755]
[1766935996233,0.02609913,87987.0,87969.0,0.0113755]
[1766935996524,0.1649729,87990.0,87969.0,0.0113755]
[1766935996827,0.02609921,87989.0,87971.0,0.0113752]
[1766935997019,0.02609921,87988.0,87971.0,0.0113752]
[1766935997218,0.02609921,87987.0,87971.0,0.0113752]
[1766935997530,0.1649729,87990.0,87971.0,0.0113752]
[1766935997712,0.0260992,87989.0,87971.0,0.0113752]
[1766935997918,0.0260992,87988.0,87971.0,0.0113752]
[1766935998120,0.0260992,87987.0,87971.0,0.0113752]
[1766935998326,0.1649729,87990.0,87971.0,0.0113752]
[1766935998528,0.02609915,87989.0,87971.0,0.0113752]
[1766935998721,0.02609915,87988.0,87971.0,0.0113752]
[1766935998923,0.1649729,87990.0,87971.0,0.0113752]
[1766935999123,0.02609916,87989.0,87971.0,0.0113752]
[1766935999324,0.02609916,87988.0,87971.0,0.0113752]
[1766935999519,0.1649729,87990.0,87971.0,0.0113752]
[1766935999719,0.02609911,87989.0,87971.0,0.0113752]
[1766935999927,0.02609911,87988.0,87971.0,0.0113752]
[1766936000126,0.1649729,87990.0,87971.0,0.0113752]
[1766936000326,0.02609916,87989.0,87971.0,0.0113752]
[1766936000527,0.02609916,87988.0,87971.0,0.0113752]
[1766936000827,0.1649729,87990.0,87971.0,0.0113752]
[1766936001026,0.02609896,87989.0,87971.0,0.0113752]
[1766936001228,0.02609896,87988.0,87971.0,0.0113752]
[1766936001424,0.1649729,87990.0,87971.0,0.0113752]
[1766936001626,0.02609908,87989.0,87971.0,0.0113752]
[1766936001834,0.02609908,87988.0,87971.0,0.0113752]
[1766936002026,0.1649729,87990.0,87971.0,0.0113752]
[1766936002328,0.0260313,87989.0,87971.0,0.0113752]
[1766936002529,0.0260313,87988.0,87971.0,0.0113752]
[1766936002726,0.1649729,87990.0,87971.0,0.0113752]
[1766936002921,0.02603141,87989.0,87971.0,0.0113752]
[1766936003119,0.02603141,87988.0,87971.0,0.0113752]
[1766936003319,0.1649729,87990.0,87971.0,0.0113752]
[1766936003525,0.02602931,87989.0,87971.0,0.0113752]
[1766936003725,0.02602931,87988.0,87971.0,0.0113752]
[1766936003922,0.1649729,87990.0,87971.0,0.0113752]
[1766936004124,0.02602913,87989.0,87971.0,0.0113752]
[1766936004321,0.02602913,87988.0,87971.0,0.0113752]
[1766936004527,0.1649729,87990.0,87971.0,0.0113752]
[1766936004826,0.02602944,87989.0,87971.0,0.0113752]
[1766936005025,0.02602944,87988.0,87971.0,0.0113752]
[1766936005227,0.1649729,87990.0,87971.0,0.0113752]
[1766936005427,0.02602963,87989.0,87971.0,0.0113752]
[1766936005620,0.02602963,87988.0,87971.0,0.0113752]
[1766936005821,0.1649729,87990.0,87971.0,0.0113752]
[1766936006026,0.02603118,87989.0,87971.0,0.0113752]
[1766936006224,0.02603118,87988.0,87971.0,0.0113752]
[1766936006423,0.1649729,87990.0,87971.0,0.0113752]
[1766936006623,0.02603157,87989.0,87971.0,0.0113752]
[1766936006827,0.02603157,87988.0,87971.0,0.0113752]
[1766936007032,0.1649729,87990.0,87971.0,0.0113752]
[1766936007220,0.0260284,87989.0,87971.0,0.0113752]
[1766936007420,0.0260284,87988.0,87971.0,0.0113752]
[1766936007619,0.1649729,87990.0,87971.0,0.0113752]
[1766936007820,0.02602457,87989.0,87971.0,0.0113752]
[1766936008021,0.02602457,87988.0,87971.0,0.0113752]
[1766936008331,0.1649729,87990.0,87971.0,0.0113752]
[1766936008530,0.02602459,87989.0,87971.0,0.0113752]
[1766936008728,0.02602459,87988.0,87971.0,0.0113752]
[1766936008929,0.1649729,87990.0,87971.0,0.0113752]
[1766936009129,0.02602234,87989.0,87971.0,0.0113752]
[1766936009428,0.02602234,87988.0,87971.0,0.0113752]
[1766936009631,0.1649729,87990.0,87971.0,0.0113752]
[1766936009826,0.02602184,87989.0,87971.0,0.0113752]
[1766936010030,0.02602184,87988.0,87971.0,0.0113752]
[1766936010332,0.1649729,87990.0,87971.0,0.0113752]
[1766936010528,0.026022,87989.0,87971.0,0.0113752]
[1766936010723,0.1649729,87990.0,87971.0,0.0113752]
[1766936011029,0.026022,87989.0,87971.0,0.0113752]
[1766936011332,0.026022,87988.0,87971.0,0.0113752]
[1766936011532,0.02602335,87987.0,87971.0,0.0113752]
[1766936011733,0.1649729,87990.0,87971.0,0.0113752]
[1766936012031,0.02602332,87989.0,87971.0,0.0113752]
[1766936012232,0.02602332,87988.0,87971.0,0.0113752]
[1766936012429,0.02602332,87987.0,87971.0,0.0113752]
[1766936012731,0.1649729,87990.0,87971.0,0.0113752]
[1766936012931,0.02602423,87989.0,87971.0,0.0113752]
[1766936013130,0.02602423,87988.0,87971.0,0.0113752]
[1766936013331,0.02602423,87987.0,87971.0,0.0113752]
[1766936013633,0.0113731,87988.0,87971.0,0.0113752]
[1766936013833,0.02602423,87987.0,87971.0,0.0113752]
[1766936014026,0.0113731,87988.0,87971.0,0.0113752]
[1766936014439,0.02602424,87987.0,87971.0,0.0113752]
[1766936014633,0.0113731,87988.0,87971.0,0.0113752]
[1766936014834,0.1536,87990.0,87971.0,0.0113752]
[1766936015027,0.02602427,87989.0,87971.0,0.0113752]
[1766936015229,0.02602427,87988.0,87971.0,0.0113752]
[1766936015529,0.02602427,87987.0,87971.0,0.0113752]
[1766936015728,0.1536,87990.0,87971.0,0.0113752]
[1766936015929,0.02602426,87989.0,87971.0,0.0113752]
[1766936016130,0.02602426,87988.0,87971.0,0.0113752]
[1766936016338,0.1536,87990.0,87971.0,0.0113752]
[1766936016540,0.02602425,87989.0,87971.0,0.0113752]
[1766936016840,0.02602425,87988.0,87971.0,0.0113752]
[1766936017138,0.02602425,87987.0,87971.0,0.0113752]
[1766936017340,0.1536,87990.0,87971.0,0.0113752]
[1766936017538,0.02602424,87989.0,87971.0,0.0113752]
[1766936017739,0.02602424,87988.0,87971.0,0.0113752]
[1766936017941,0.011373,87989.0,87971.0,0.0113752]
[1766936018134,0.02602424,87988.0,87971.0,0.0113752]
[1766936018436,0.011373,87989.0,87971.0,0.0113752]
[1766936018635,0.02602424,87988.0,87971.0,0.0113752]
[1766936018936,0.011373,87989.0,87968.0,0.0113756]
[1766936019130,0.02602425,87988.0,87968.0,0.0113756]
[1766936019329,0.011373,87989.0,87968.0,0.0113756]
[1766936019530,0.02602423,87988.0,87968.0,0.0113756]
[1766936019731,0.011373,87989.0,87968.0,0.0113756]
[1766936019941,0.02602423,87988.0,87968.0,0.0113756]
[1766936020138,0.011373,87989.0,87968.0,0.0113756]
[1766936020340,0.02602423,87988.0,87968.0,0.0113756]
[1766936020533,0.011373,87989.0,87970.0,0.0113753]
[1766936020733,0.02602424,87988.0,87970.0,0.0113753]
[1766936020933,0.011373,87989.0,87970.0,0.0113753]
[1766936021133,0.02602424,87988.0,87970.0,0.0113753]
[1766936021337,0.011373,87989.0,87970.0,0.0113753]
[1766936021540,0.02602422,87988.0,87970.0,0.0113753]
[1766936021838,0.011373,87989.0,87972.0,0.0113751]
[1766936022040,0.02602417,87988.0,87972.0,0.0113751]
[1766936022340,0.011373,87989.0,87972.0,0.0113751]
[1766936022540,0.02602765,87988.0,87972.0,0.0113751]
[1766936022739,0.02602765,87987.0,87972.0,0.0113751]
[1766936022940,0.011373,87989.0,87972.0,0.0113751]
[1766936023235,0.02603105,87988.0,87972.0,0.0113751]
[1766936023439,0.02603105,87987.0,87972.0,0.0113751]
[1766936023640,0.011373,87989.0,87969.0,0.0113755]
[1766936023842,0.02603147,87988.0,87969.0,0.0113755]
[1766936024034,0.02603147,87987.0,87969.0,0.0113755]
[1766936024229,0.011373,87989.0,87969.0,0.0113755]
[1766936024436,0.02603156,87988.0,87969.0,0.0113755]
[1766936024636,0.02603156,87987.0,87969.0,0.0113755]
[1766936024836,0.011373,87989.0,87969.0,0.0113755]
[1766936025040,0.02603154,87988.0,87969.0,0.0113755]
[1766936025237,0.02603154,87987.0,87969.0,0.0113755]
[1766936025537,0.0113732,87987.0,87969.0,0.0113755]
[1766936026343,0.1536,87990.0,87969.0,0.0113755]
[1766936026544,0.02603147,87989.0,87969.0,0.0113755]
[1766936026746,0.02603147,87988.0,87969.0,0.0113755]
[1766936027044,0.02603147,87987.0,87969.0,0.0113755]
[1766936027244,0.0113731,87988.0,87969.0,0.0113755]
[1766936027445,0.02603147,87987.0,87969.0,0.0113755]
[1766936027649,0.0113731,87988.0,87969.0,0.0113755]
[1766936027947,0.02603147,87987.0,87969.0,0.0113755]
[1766936028246,0.0113731,87988.0,87969.0,0.0113755]
[1766936028444,0.02603146,87987.0,87969.0,0.0113755]
[1766936028645,0.1536,87990.0,87969.0,0.0113755]
[1766936028848,0.02603145,87989.0,87969.0,0.0113755]
[1766936029034,0.1536,87990.0,87969.0,0.0113755]
[1766936029035,0.02603145,87988.0,87969.0,0.0113755]
[1766936029238,0.02603145,87987.0,87969.0,0.0113755]
[1766936029439,0.1536,87990.0,87969.0,0.0113755]
[1766936029636,0.03740445,87989.0,87969.0,0.0113755]
[1766936029846,0.02603145,87988.0,87969.0,0.0113755]
[1766936032351,0.02603145,87988.0,87967.0,0.05692]
[1766936034353,0.02603145,87988.0,87968.0,0.0113757]
[1766936034853,0.02603145,87987.0,87968.0,0.0113757]
[1766936035054,0.1536,87990.0,87968.0,0.0113757]
[1766936035250,0.02635337,87989.0,87968.0,0.0113757]
[1766936035450,0.02635337,87988.0,87968.0,0.0113757]
[1766936035650,0.02635337,87987.0,87968.0,0.0113757]
[1766936035952,0.1536,87990.0,87968.0,0.0113757]
[1766936036150,0.02635332,87989.0,87968.0,0.0113757]
[1766936036350,0.02635332,87988.0,87968.0,0.0113757]
[1766936036552,0.02635332,87987.0,87968.0,0.0113757]
[1766936036751,0.1536,87990.0,87968.0,0.0113757]
[1766936036952,0.02635332,87989.0,87968.0,0.0113757]
[1766936037153,0.02635332,87988.0,87968.0,0.0113757]
[1766936037353,0.02635332,87987.0,87968.0,0.0113757]
[1766936037657,0.1536,87990.0,87968.0,0.0113757]
[1766936037857,0.02635329,87989.0,87968.0,0.0113757]
[1766936038058,0.02635329,87988.0,87968.0,0.0113757]
[1766936038356,0.02635329,87987.0,87967.0,0.05692]
[1766936038557,0.02635329,87986.0,87967.0,0.05692]
[1766936038763,0.02635329,87985.0,87967.0,0.05692]
[1766936038951,0.1536,87990.0,87967.0,0.05692]
[1766936039146,0.02635274,87989.0,87967.0,0.05692]
[1766936039347,0.0113741,87981.0,87965.0,0.00017044]
[1766936039549,0.0113741,87981.0,87966.0,0.05692]
[1766936039754,0.0113741,87981.0,87965.0,0.00017044]
[1766936041653,0.05692,87982.0,87965.0,0.00017044]
[1766936041853,0.05692,87982.0,87966.0,0.0113759]
[1766936043564,0.05692,87982.0,87965.0,0.00017044]
[1766936044559,0.011374,87981.0,87965.0,0.00017044]
[1766936045871,0.05692,87982.0,87965.0,0.00017044]
[1766936046065,0.0113745,87978.0,87965.0,0.00017044]
[1766936053985,0.0113747,87976.0,87965.0,0.00017044]
[1766936054185,0.1536,87982.0,87965.0,0.00017044]
[1766936054186,0.011375,87974.0,87965.0,0.00017044]
[1766936054487,0.0113758,87968.0,87961.0,0.09668]
[1766936054688,0.0113758,87968.0,87955.0,0.05692]
[1766936054689,0.011376,87966.0,87955.0,0.05692]
[1766936055691,0.011376,87966.0,87956.0,0.0074]
[1766936056387,0.0113763,87964.0,87956.0,0.0074]
[1766936057885,0.00017044,87969.0,87953.0,0.00227395]
[1766936058084,0.05692,87968.0,87944.0,0.09668]
[1766936059184,0.05692,87968.0,87948.0,0.00017054]
[1766936060196,0.0113767,87961.0,87948.0,0.00017054]
[1766936062089,0.05692,87968.0,87948.0,0.00017054]
[1766936062090,0.0113763,87964.0,87948.0,0.00017054]
[1766936062287,0.0113759,87967.0,87949.0,0.0113781]
[1766936062798,0.011376,87966.0,87948.0,0.00017054]
[1766936063398,0.0113763,87964.0,87948.0,0.00017054]
[1766936066396,0.05692,87968.0,87948.0,0.00017054]
[1766936068192,0.0682957,87968.0,87948.0,0.00017054]
[1766936070504,0.011376,87966.0,87948.0,0.00017054]
[1766936071705,0.05692,87968.0,87948.0,0.00017054]
[1766936072406,0.0113758,87967.0,87948.0,0.00017054]
[1766936074912,0.0113758,87967.0,87948.0,0.01154874]
[1766936075411,0.0113762,87965.0,87948.0,0.01154874]
[1766936076112,0.0113764,87963.0,87948.0,0.00017054]
[1766936079311,0.0113767,87960.0,87948.0,0.00017054]
[1766936084620,0.0113771,87958.0,87948.0,0.00017054]
[1766936090121,0.0113771,87958.0,87946.0,0.00010725]
[1766936090626,0.0113771,87958.0,87944.0,0.07568]
[1766936090817,0.0113776,87954.0,87941.0,0.05692]
[1766936091713,8.009e-05,87953.0,87941.0,0.05692]
[1766936092924,8.009e-05,87953.0,87937.0,0.1080996]
[1766936094829,8.009e-05,87953.0,87937.0,0.0113796]
[1766936095431,0.0113778,87952.0,87934.0,0.0113801]
[1766936095733,0.01154834,87952.0,87934.0,0.0113801]
[1766936096433,0.01154834,87952.0,87935.0,0.11370743]
[1766936098532,0.01154834,87952.0,87938.0,0.06142416]
[1766936099333,0.00017054,87952.0,87938.0,0.06142416]
[1766936100029,0.00017054,87952.0,87939.0,0.0113794]
[1766936101734,0.00017054,87952.0,87941.0,0.0113791]
[1766936104537,0.00017054,87952.0,87942.0,0.00398]
[1766936114349,0.01154834,87952.0,87942.0,0.00398]
[1766936115031,0.0113781,87950.0,87942.0,0.00398]
[1766936118248,0.00017054,87952.0,87942.0,0.00398]
[1766936118448,0.0113785,87947.0,87938.0,0.06142416]
[1766936118749,0.0113785,87947.0,87935.0,0.06142416]
[1766936119139,0.0113785,87947.0,87932.0,0.05692]
[1766936119140,0.0113785,87947.0,87936.0,0.06142416]
[1766936119346,0.0113785,87947.0,87935.0,0.06142416]
[1766936119542,0.0113785,87947.0,87940.0,0.04096303]
[1766936120050,0.0113783,87948.0,87937.0,0.04096303]
[1766936120246,0.0113783,87948.0,87938.0,0.04096303]
[1766936120450,0.0113783,87948.0,87937.0,0.04096303]
[1766936120651,0.0113779,87951.0,87937.0,0.04096303]
[1766936121652,0.0113779,87951.0,87936.0,0.04096303]
[1766936121847,0.0113779,87951.0,87943.0,0.03072101]
[1766936122357,0.0113779,87951.0,87944.0,0.01778814]
[1766936122552,0.0113779,87951.0,87945.0,0.01778814]
[1766936122750,0.0113779,87951.0,87946.0,4e-08]
[1766936122948,0.0113779,87951.0,87943.0,0.03072101]
[1766936123355,0.0113779,87951.0,87942.0,0.03072101]
[1766936123946,0.0113782,87949.0,87942.0,0.03072101]
[1766936124946,0.0113785,87947.0,87942.0,1e-08]
[1766936125349,0.0113785,87947.0,87936.0,0.04096303]
[1766936127352,0.011378,87950.0,87936.0,0.04096303]
[1766936129860,0.00017054,87952.0,87936.0,0.04096303]
[1766936130360,0.0113779,87951.0,87936.0,0.04096303]
[1766936131657,0.0113779,87951.0,87937.0,0.04096303]
[1766936131962,0.00017054,87952.0,87937.0,0.04096303]
[1766936133053,0.09689054,87952.0,87937.0,0.04096303]
[1766936134361,0.09689054,87952.0,87938.0,0.04096303]
[1766936134750,0.09689054,87952.0,87939.0,0.05875125]
[1766936134955,0.09689054,87952.0,87940.0,0.01778822]
[1766936135163,0.09689054,87952.0,87941.0,0.01778822]
[1766936135462,0.09689054,87952.0,87942.0,0.01778822]
[1766936135760,0.09689054,87952.0,87943.0,0.01778822]
[1766936135951,0.09689054,87952.0,87944.0,0.01778822]
[1766936136152,0.09689054,87952.0,87945.0,0.01778822]
[1766936136349,0.09689054,87952.0,87939.0,0.0113794]
[1766936137667,0.09689054,87952.0,87936.0,0.05234283]
[1766936137967,0.09689054,87952.0,87939.0,0.0113793]
[1766936138162,0.09689054,87952.0,87936.0,0.05234283]
[1766936138361,0.09689054,87952.0,87937.0,0.0177882]
[1766936138562,0.09689054,87952.0,87938.0,0.0177882]
[1766936138763,0.09689054,87952.0,87939.0,0.0177882]
[1766936139061,0.09689054,87952.0,87940.0,0.0177882]
[1766936139257,0.09689054,87952.0,87941.0,0.0177882]
[1766936139556,0.09689054,87952.0,87942.0,0.0177882]
[1766936139758,0.09689054,87952.0,87943.0,0.0177882]
[1766936139958,0.09689054,87952.0,87944.0,0.0177882]
[1766936140258,0.09689054,87952.0,87945.0,0.0177882]
[1766936140458,0.09689054,87952.0,87946.0,0.0177882]
[1766936140670,0.09689054,87952.0,87947.0,0.0177882]
[1766936140860,0.09689054,87952.0,87948.0,0.0177882]
[1766936141060,0.09689054,87952.0,87949.0,0.0177882]
[1766936141255,0.09689054,87952.0,87950.0,0.0177882]
[1766936141557,0.09689054,87952.0,87951.0,0.0177882]
[1766936141956,0.03905064,87953.0,87951.0,0.0177882]
[1766936142162,0.05692,87955.0,87952.0,0.0177882]
[1766936142362,0.01308223,87965.0,87953.0,0.0177882]
[1766936142563,0.15364,87964.0,87954.0,0.0177882]
[1766936142762,0.15364,87964.0,87955.0,0.0177882]
[1766936142967,0.15364,87964.0,87956.0,0.0177882]
[1766936143168,0.15364,87964.0,87957.0,0.0177882]
[1766936143364,0.15364,87964.0,87958.0,0.0177882]
[1766936143673,0.15364,87964.0,87959.0,0.0177882]
[1766936143861,0.011376,87966.0,87951.0,0.00017054]
[1766936144058,0.05692,87965.0,87951.0,0.00017054]
[1766936149567,0.05692,87964.0,87951.0,0.00017054]
[1766936155877,0.05692,87964.0,87952.0,0.01778641]
[1766936156064,0.05692,87964.0,87953.0,0.01778641]
[1766936156268,0.05692,87964.0,87954.0,0.01778641]
[1766936156466,0.05692,87964.0,87955.0,0.01778641]
[1766936156669,0.05692,87964.0,87956.0,0.01778641]
[1766936156869,0.05692,87964.0,87957.0,0.01778641]
[1766936157079,0.05692,87964.0,87958.0,0.01778641]
[1766936157274,0.05692,87964.0,87959.0,0.01778641]
[1766936157475,0.05692,87964.0,87960.0,0.01778641]
[1766936157676,0.05692,87964.0,87961.0,0.01778641]
[1766936157981,0.05692,87964.0,87962.0,0.01778641]
[1766936158181,0.05692,87964.0,87963.0,0.01778641]
[1766936160371,0.05692,87964.0,87951.0,0.00017054]
[1766936167589,0.05692,87964.0,87951.0,0.01154834]
[1766936172382,0.00017054,87968.0,87954.0,0.0113774]
[1766936172587,0.05709054,87968.0,87954.0,0.0113774]
[1766936173791,0.00017054,87968.0,87954.0,0.0113774]
[1766936173990,0.05692,87967.0,87954.0,0.0113774]
[1766936174985,0.05692,87967.0,87951.0,0.01154834]
[1766936176690,0.00017054,87968.0,87951.0,0.01154834]
[1766936176892,0.05692,87966.0,87951.0,0.01154834]
[1766936177795,0.05692,87966.0,87951.0,0.00017054]
[1766936178198,0.00017054,87968.0,87951.0,0.00017054]
[1766936178587,0.05692,87967.0,87951.0,0.00017054]
[1766936180694,0.05692,87967.0,87951.0,0.04113357]
[1766936182286,0.05692,87967.0,87952.0,0.04096303]
[1766936184395,0.05692,87967.0,87951.0,0.05251137]
[1766936184894,0.05692,87967.0,87955.0,0.03072838]
[1766936188391,0.05692,87967.0,87956.0,0.01778608]
[1766936188584,0.05692,87967.0,87957.0,0.01778608]
[1766936188787,0.05692,87967.0,87958.0,0.01778608]
[1766936188986,0.05692,87967.0,87955.0,0.03072838]
[1766936188987,0.05692,87967.0,87959.0,0.01778608]
[1766936189195,0.05692,87967.0,87960.0,0.01778608]
[1766936189396,0.05692,87967.0,87961.0,0.01778608]
[1766936189597,0.05692,87967.0,87962.0,0.01778608]
[1766936189798,0.05692,87967.0,87963.0,0.01778608]
[1766936190093,0.05692,87967.0,87964.0,0.01778608]
[1766936190395,0.05692,87967.0,87965.0,0.01778608]
[1766936190695,0.05692,87967.0,87966.0,8e-08]
[1766936191496,0.05692,87967.0,87954.0,0.03072838]